Workbook

Sheet Sheet1
A1: 【별첨2】
A2: 온라인몰 할인쿠폰 발행 행사 결과 보고서
A4: 업체명 | G4: 대표자
A5: 주 소
A6: 행사담당자 | G6: 연락처
G7: 이메일
A9: 행사명 | G9: 행사기간
A10: 행사매출액 | G10: 할인쿠폰 지원액
A12: 세부 판매내역
A13: 상품명 | B13: 등급 | C13: 판매단위 (g) | D13: 정상가격 | E13: 자체할인율 적용가격 | F13: 자조금 할인율 | G13: 판매가격 | H13: 판매수량 | I13: 매출액 | J13: 최종할인율 | K13: 지원요청액
A15: 예시) 자체할인율 20%, 자조금 쿠폰 할인율 등급별 적용, 판매수량 1,000개 기준
A16: ㅇㅇ한우 등심 | B16: 1등급 | C16: 300 | D16: 45,000 | E16: =D16*80% -> 36,000 | F16: 10% | G16: =E16*(1-F16) -> 32,400 | H16: 1,000 | I16: =G16*H16 -> 32,400,000 | J16: =G16/D16-1 -> -28.0% | K16: =(E16-G16)*H16 -> 3,600,000
A17: ㅇㅇ한우 등심 | B17: 2등급 | C17: 200 | D17: 20,000 | E17: =D17*80% -> 16,000 | F17: 20% | G17: =E17*(1-F17) -> 12,800 | H17: 1,000 | I17: =G17*H17 -> 12,800,000 | J17: =G17/D17-1 -> -36.0% | K17: =(E17-G17)*H17 -> 3,200,000
A18: ㅇㅇ한우 안심 | B18: 1등급 | C18: 300 | D18: 60,000 | E18: =D18*80% -> 48,000 | F18: 10% | G18: =E18*(1-F18) -> 43,200 | H18: 1,000 | I18: =G18*H18 -> 43,200,000 | J18: =G18/D18-1 -> -28.0% | K18: =(E18-G18)*H18 -> 4,800,000
A19: ㅇㅇ한우 부채살 | B19: 2등급 | C19: 300 | D19: 42,000 | E19: =D19*80% -> 33,600 | F19: 20% | G19: =E19*(1-F19) -> 26,880 | H19: 1,000 | I19: =G19*H19 -> 26,880,000 | J19: =G19/D19-1 -> -36.0% | K19: =(E19-G19)*H19 -> 6,720,000
A20: ㅇㅇ한우 국거리 | B20: 2등급 | C20: 300 | D20: 15,000 | E20: =D20*80% -> 12,000 | F20: 20% | G20: =E20*(1-F20) -> 9,600 | H20: 1,000 | I20: =G20*H20 -> 9,600,000 | J20: =G20/D20-1 -> -36.0% | K20: =(E20-G20)*H20 -> 2,400,000
A38: 합계 | B38: - | C38: - | D38: - | E38: - | G38: - | H38: =SUM(H16:H37) -> 5,000 | I38: =SUM(I16:I37) -> 124,880,000 | J38: - | K38: =SUM(K16:K37) -> 20,720,000
A40: 상기 행사 매출실적은 사실과 틀림이 없음을 확인합니다.
A42: 첨부자료 | B42: 1. 매출실적 증빙자료
B43: 2. 행사 사진(온라인 화면 캡쳐, 홍보추진 내역 등)
B44: 3. 지원금에 대한 세금계산서 1부
G46: 업 체 명 :
G47: 대 표 자 : (인_)
